[Event "Early-Titled-Tuesday-Blitz-February-13-2024"]
[Site "Chess.com"]
[Date "2024.02.13"]
[Round "5"]
[White "PositionalPanther"]
[Black "ilqar_74"]
[Result "0-1"]
[WhiteElo "2418"]
[BlackElo "2807"]
[TimeControl "180+1"]
[EndTime "9:02:26 PST"]
[Termination "ilqar_74 won by checkmate"]

1. Nf3 {[%clk 0:02:59]} 1... Nf6 {[%clk 0:02:59.6]} 2. g3 {[%clk 0:02:59.4]}
2... e6 {[%clk 0:02:59.3]} 3. Bg2 {[%clk 0:02:59.3]} 3... d5 {[%clk 0:03:00.2]}
4. O-O {[%clk 0:02:59.7]} 4... Be7 {[%clk 0:02:55.4]} 5. c4 {[%clk 0:03:00.3]}
5... O-O {[%clk 0:02:55.2]} 6. b3 {[%clk 0:03:00]} 6... c5 {[%clk 0:02:50.6]} 7.
cxd5 {[%clk 0:02:56.8]} 7... exd5 {[%clk 0:02:49.2]} 8. d4 {[%clk 0:02:57]} 8...
Nc6 {[%clk 0:02:44.4]} 9. dxc5 {[%clk 0:02:56.4]} 9... Bxc5 {[%clk 0:02:45.3]}
10. Bb2 {[%clk 0:02:56.8]} 10... Be6 {[%clk 0:02:43.4]} 11. Nd4 {[%clk
0:02:50.6]} 11... Qb6 {[%clk 0:02:40.3]} 12. e3 {[%clk 0:02:47.3]} 12... Rac8
{[%clk 0:02:35.9]} 13. Nc3 {[%clk 0:02:45.6]} 13... Bxd4 {[%clk 0:02:26]} 14.
Na4 {[%clk 0:02:45.2]} 14... Qa5 {[%clk 0:02:22.4]} 15. Bxd4 {[%clk 0:02:42.8]}
15... Nxd4 {[%clk 0:02:01.4]} 16. Qxd4 {[%clk 0:02:43.7]} 16... Rc2 {[%clk
0:01:57.1]} 17. Rfc1 {[%clk 0:02:39]} 17... Rfc8 {[%clk 0:01:56.4]} 18. Rxc2
{[%clk 0:02:39.2]} 18... Rxc2 {[%clk 0:01:57.3]} 19. Qd3 {[%clk 0:02:23.4]}
19... Qc7 {[%clk 0:01:49.5]} 20. b4 {[%clk 0:02:11.7]} 20... b6 {[%clk
0:01:43.3]} 21. Nc5 {[%clk 0:02:09.7]} 21... Qe5 {[%clk 0:01:24.7]} 22. Nb3
{[%clk 0:01:33.9]} 22... Rb2 {[%clk 0:01:18.7]} 23. Qd4 {[%clk 0:01:26.5]} 23...
Qxd4 {[%clk 0:01:15.8]} 24. Nxd4 {[%clk 0:01:11.4]} 24... Rxb4 {[%clk
0:01:01.1]} 25. Nc6 {[%clk 0:00:58.9]} 25... Ra4 {[%clk 0:00:58]} 26. Bf1 {[%clk
0:00:49.3]} 26... a6 {[%clk 0:00:50.2]} 27. Rb1 {[%clk 0:00:42.5]} 27... b5
{[%clk 0:00:46.1]} 28. Rb2 {[%clk 0:00:42.6]} 28... d4 {[%clk 0:00:42]} 29. Nxd4
{[%clk 0:00:37.5]} 29... Rxa2 {[%clk 0:00:38.4]} 30. Rb1 {[%clk 0:00:25.4]}
30... Bd5 {[%clk 0:00:33.9]} 31. Rc1 {[%clk 0:00:24.8]} 31... g6 {[%clk
0:00:31.6]} 32. Rc8+ {[%clk 0:00:24.3]} 32... Kg7 {[%clk 0:00:31.6]} 33. Rc1
{[%clk 0:00:17]} 33... b4 {[%clk 0:00:25.3]} 34. Rb1 {[%clk 0:00:14.9]} 34... a5
{[%clk 0:00:25]} 35. f3 {[%clk 0:00:12]} 35... Nd7 {[%clk 0:00:15.5]} 36. e4
{[%clk 0:00:12.1]} 36... Be6 {[%clk 0:00:15.8]} 37. Nxe6+ {[%clk 0:00:12.3]}
37... fxe6 {[%clk 0:00:16.7]} 38. Bc4 {[%clk 0:00:12.7]} 38... Ra3 {[%clk
0:00:17.1]} 39. Bxe6 {[%clk 0:00:11.9]} 39... Nc5 {[%clk 0:00:17.7]} 40. Bd5
{[%clk 0:00:10.1]} 40... Rxf3 {[%clk 0:00:16.4]} 41. Rc1 {[%clk 0:00:10.5]}
41... Rc3 {[%clk 0:00:15.3]} 42. Rf1 {[%clk 0:00:10.1]} 42... a4 {[%clk
0:00:15.5]} 43. g4 {[%clk 0:00:10.5]} 43... g5 {[%clk 0:00:11.6]} 44. h4 {[%clk
0:00:10.6]} 44... h6 {[%clk 0:00:11]} 45. h5 {[%clk 0:00:10.8]} 45... b3 {[%clk
0:00:07.3]} 46. Rf7+ {[%clk 0:00:11.4]} 46... Kh8 {[%clk 0:00:06.6]} 47. Rf8+
{[%clk 0:00:10.9]} 47... Kg7 {[%clk 0:00:07]} 48. Rf7+ {[%clk 0:00:11.3]} 48...
Kh8 {[%clk 0:00:07]} 49. e5 {[%clk 0:00:06.9]} 49... b2 {[%clk 0:00:04.5]} 50.
Rf8+ {[%clk 0:00:07.1]} 50... Kg7 {[%clk 0:00:04.7]} 51. Rf7+ {[%clk 0:00:06.4]}
51... Kg8 {[%clk 0:00:05.3]} 52. Rb7+ {[%clk 0:00:03.8]} 52... Kf8 {[%clk
0:00:04.5]} 53. Rxb2 {[%clk 0:00:03.6]} 53... a3 {[%clk 0:00:05.2]} 54. Rb8+
{[%clk 0:00:03]} 54... Ke7 {[%clk 0:00:05.7]} 55. Ra8 {[%clk 0:00:03.5]} 55...
Re3 {[%clk 0:00:04.4]} 56. Ra7+ {[%clk 0:00:04.1]} 56... Kd8 {[%clk 0:00:05]}
57. e6 {[%clk 0:00:04.6]} 57... a2 {[%clk 0:00:03]} 58. Rxa2 {[%clk 0:00:04.1]}
58... Nxe6 {[%clk 0:00:03.4]} 59. Bxe6 {[%clk 0:00:04.5]} 59... Rxe6 {[%clk
0:00:04.3]} 60. Ra8+ {[%clk 0:00:04.6]} 60... Ke7 {[%clk 0:00:04]} 61. Rh8
{[%clk 0:00:05.5]} 61... Kf7 {[%clk 0:00:03.5]} 62. Rh7+ {[%clk 0:00:06]} 62...
Kg8 {[%clk 0:00:03.7]} 63. Rc7 {[%clk 0:00:06.6]} 63... Re4 {[%clk 0:00:04.2]}
64. Rc6 {[%clk 0:00:07]} 64... Rxg4+ {[%clk 0:00:04.5]} 65. Kf2 {[%clk
0:00:06.4]} 65... Kg7 {[%clk 0:00:04.9]} 66. Rg6+ {[%clk 0:00:06.9]} 66... Kh7
{[%clk 0:00:05.1]} 67. Rc6 {[%clk 0:00:07.6]} 67... Rh4 {[%clk 0:00:05.2]} 68.
Rc7+ {[%clk 0:00:08]} 68... Kg8 {[%clk 0:00:05.9]} 69. Rc8+ {[%clk 0:00:08.2]}
69... Kg7 {[%clk 0:00:06.6]} 70. Rc7+ {[%clk 0:00:09]} 70... Kf6 {[%clk
0:00:07.1]} 71. Rc6+ {[%clk 0:00:09.6]} 71... Kg7 {[%clk 0:00:07.5]} 72. Rc7+
{[%clk 0:00:10.2]} 72... Kf8 {[%clk 0:00:08.2]} 73. Rc8+ {[%clk 0:00:10.7]}
73... Ke7 {[%clk 0:00:08.7]} 74. Rc7+ {[%clk 0:00:11.5]} 74... Kd8 {[%clk
0:00:09.3]} 75. Ra7 {[%clk 0:00:11.8]} 75... Rxh5 {[%clk 0:00:09.6]} 76. Kf3
{[%clk 0:00:12.7]} 76... Rh4 {[%clk 0:00:10.2]} 77. Kg3 {[%clk 0:00:13.1]} 77...
Ke8 {[%clk 0:00:10.7]} 78. Ra8+ {[%clk 0:00:12.8]} 78... Kf7 {[%clk 0:00:11.1]}
79. Ra7+ {[%clk 0:00:13.7]} 79... Kg6 {[%clk 0:00:11.7]} 80. Ra6+ {[%clk
0:00:14.6]} 80... Kh5 {[%clk 0:00:12.2]} 81. Ra1 {[%clk 0:00:14.2]} 81... Rb4
{[%clk 0:00:12.5]} 82. Rh1+ {[%clk 0:00:14.9]} 82... Kg6 {[%clk 0:00:13.1]} 83.
Rd1 {[%clk 0:00:15.8]} 83... Rb3+ {[%clk 0:00:13.1]} 84. Kg2 {[%clk 0:00:16.1]}
84... g4 {[%clk 0:00:13]} 85. Rd5 {[%clk 0:00:16.4]} 85... h5 {[%clk 0:00:12.9]}
86. Rc5 {[%clk 0:00:16.1]} 86... Rd3 {[%clk 0:00:11.8]} 87. Rc6+ {[%clk
0:00:15.1]} 87... Kg5 {[%clk 0:00:12]} 88. Rc5+ {[%clk 0:00:16]} 88... Kh4
{[%clk 0:00:12.6]} 89. Kg1 {[%clk 0:00:16.9]} 89... Rd2 {[%clk 0:00:12.7]} 90.
Rc1 {[%clk 0:00:17.7]} 90... Kg3 {[%clk 0:00:12.4]} 91. Kh1 {[%clk 0:00:18.6]}
91... h4 {[%clk 0:00:11.9]} 92. Rg1+ {[%clk 0:00:19.5]} 92... Kh3 {[%clk
0:00:12.5]} 93. Re1 {[%clk 0:00:12.2]} 93... g3 {[%clk 0:00:12.5]} 94. Kg1
{[%clk 0:00:08.7]} 94... Kg4 {[%clk 0:00:12.7]} 95. Rc1 {[%clk 0:00:06.9]} 95...
h3 {[%clk 0:00:12.6]} 96. Kh1 {[%clk 0:00:06.5]} 96... Kf3 {[%clk 0:00:12.4]}
97. Rf1+ {[%clk 0:00:05.8]} 97... Ke2 {[%clk 0:00:11.1]} 98. Rf2+ {[%clk
0:00:06.2]} 98... gxf2 {[%clk 0:00:09.9]} 99. Kh2 {[%clk 0:00:06.1]} 99... f1=Q
{[%clk 0:00:09.8]} 100. Kg3 {[%clk 0:00:06.7]} 100... Qg2+ {[%clk 0:00:10.4]}
101. Kh4 {[%clk 0:00:07.6]} 101... Rd4+ {[%clk 0:00:10.7]} 102. Kh5 {[%clk
0:00:08]} 102... Qg4+ {[%clk 0:00:11.2]} 103. Kh6 {[%clk 0:00:08.9]} 103... Rd6+
{[%clk 0:00:11.8]} 104. Kh7 {[%clk 0:00:09.8]} 104... Qg6+ {[%clk 0:00:12.4]}
105. Kh8 {[%clk 0:00:10.1]} 105... Rd8# {[%clk 0:00:13.1]} 0-1

[Event "Early-Titled-Tuesday-Blitz-February-13-2024"]
[Site "Chess.com"]
[Date "2024.02.13"]
[Round "5"]
[White "Evgeny81"]
[Black "VladimirKramnik"]
[Result "1/2-1/2"]
[WhiteElo "2726"]
[BlackElo "2926"]
[TimeControl "180+1"]
[EndTime "9:02:29 PST"]
[Termination "Game drawn by repetition"]

1. d4 {[%clk 0:03:00.9]} 1... Nf6 {[%clk 0:02:54.7]} 2. c4 {[%clk 0:03:01.2]}
2... e6 {[%clk 0:02:53.6]} 3. Nf3 {[%clk 0:03:01.3]} 3... d5 {[%clk 0:02:51.5]}
4. g3 {[%clk 0:03:01.2]} 4... Bb4+ {[%clk 0:02:46.6]} 5. Bd2 {[%clk 0:03:01.1]}
5... Bd6 {[%clk 0:02:46.3]} 6. Bg2 {[%clk 0:02:59.6]} 6... O-O {[%clk 0:02:46]}
7. O-O {[%clk 0:02:59.2]} 7... c6 {[%clk 0:02:44.4]} 8. Qc2 {[%clk 0:02:59.4]}
8... Nbd7 {[%clk 0:02:44.1]} 9. a4 {[%clk 0:02:51.5]} 9... a5 {[%clk 0:02:40]}
10. Nc3 {[%clk 0:02:48.8]} 10... dxc4 {[%clk 0:02:38.1]} 11. Rfd1 {[%clk
0:02:45.9]} 11... Qe7 {[%clk 0:02:32.7]} 12. Bg5 {[%clk 0:02:42.3]} 12... h6
{[%clk 0:02:30]} 13. Bxf6 {[%clk 0:02:42.2]} 13... Nxf6 {[%clk 0:02:30.3]} 14.
Nd2 {[%clk 0:02:42.1]} 14... e5 {[%clk 0:01:57.7]} 15. d5 {[%clk 0:02:38.9]}
15... cxd5 {[%clk 0:01:57.3]} 16. Nxd5 {[%clk 0:02:39.8]} 16... Nxd5 {[%clk
0:01:56.5]} 17. Bxd5 {[%clk 0:02:40.7]} 17... Bg4 {[%clk 0:01:48.5]} 18. Qxc4
{[%clk 0:02:31.9]} 18... h5 {[%clk 0:01:43.9]} 19. Ne4 {[%clk 0:02:13]} 19...
Bb4 {[%clk 0:01:37.3]} 20. Kg2 {[%clk 0:01:58.3]} 20... Rac8 {[%clk 0:01:34.8]}
21. Qb5 {[%clk 0:01:58.6]} 21... Rc2 {[%clk 0:01:28.9]} 22. f3 {[%clk
0:01:44.4]} 22... Bf5 {[%clk 0:01:26.3]} 23. b3 {[%clk 0:01:34.8]} 23... h4
{[%clk 0:01:23.8]} 24. Rac1 {[%clk 0:01:28.8]} 24... h3+ {[%clk 0:01:17.4]} 25.
Kf2 {[%clk 0:01:26.4]} 25... Rfc8 {[%clk 0:01:05.2]} 26. Rxc2 {[%clk 0:01:13.3]}
26... Rxc2 {[%clk 0:01:05.7]} 27. Qxb7 {[%clk 0:01:12.1]} 27... Bc5+ {[%clk
0:01:00.2]} 28. Kf1 {[%clk 0:01:05.3]} 28... Qxb7 {[%clk 0:00:58]} 29. Bxb7
{[%clk 0:01:06.2]} 29... Be3 {[%clk 0:00:57.4]} 30. Bd5 {[%clk 0:00:52]} 30...
Kf8 {[%clk 0:00:51.7]} 31. Nf2 {[%clk 0:00:47.4]} 31... Ke7 {[%clk 0:00:43.7]}
32. g4 {[%clk 0:00:45.5]} 32... Bc8 {[%clk 0:00:44]} 33. Bc4 {[%clk 0:00:40.6]}
33... g6 {[%clk 0:00:38.6]} 34. Nxh3 {[%clk 0:00:38.7]} 34... f5 {[%clk
0:00:38.5]} 35. gxf5 {[%clk 0:00:34.7]} 35... gxf5 {[%clk 0:00:38.9]} 36. Nf2
{[%clk 0:00:32.4]} 36... Bd4 {[%clk 0:00:34.7]} 37. Bd3 {[%clk 0:00:25]} 37...
Rc3 {[%clk 0:00:30.6]} 38. Bc4 {[%clk 0:00:23.5]} 38... Kf6 {[%clk 0:00:30.1]}
39. Rd3 {[%clk 0:00:21.9]} 39... Rc1+ {[%clk 0:00:28.8]} 40. Rd1 {[%clk
0:00:21.9]} 40... Rc2 {[%clk 0:00:28.1]} 41. Kg2 {[%clk 0:00:20.5]} 41... Bb7
{[%clk 0:00:25.6]} 42. Kf1 {[%clk 0:00:14.7]} 42... Kg5 {[%clk 0:00:22.7]} 43.
Nd3 {[%clk 0:00:14.8]} 43... Kh4 {[%clk 0:00:16.9]} 44. Ne1 {[%clk 0:00:13.7]}
44... Rc3 {[%clk 0:00:14.2]} 45. Rb1 {[%clk 0:00:07.5]} 45... e4 {[%clk
0:00:11.9]} 46. fxe4 {[%clk 0:00:06.3]} 46... Bxe4 {[%clk 0:00:10.9]} 47. Rd1
{[%clk 0:00:05.9]} 47... Be5 {[%clk 0:00:08.7]} 48. Nd3 {[%clk 0:00:05.9]} 48...
Bf4 {[%clk 0:00:08.5]} 49. Kf2 {[%clk 0:00:05.6]} 49... Bxh2 {[%clk 0:00:07.4]}
50. Rc1 {[%clk 0:00:04.9]} 50... Bg3+ {[%clk 0:00:05.6]} 51. Kg1 {[%clk
0:00:04.2]} 51... Rxc1+ {[%clk 0:00:04.6]} 52. Nxc1 {[%clk 0:00:05.1]} 52... Bf4
{[%clk 0:00:04.8]} 53. Nd3 {[%clk 0:00:05.1]} 53... Be3+ {[%clk 0:00:05.3]} 54.
Kf1 {[%clk 0:00:05.1]} 54... Kg3 {[%clk 0:00:03.7]} 55. Ke1 {[%clk 0:00:04.7]}
55... f4 {[%clk 0:00:03.5]} 56. Kd1 {[%clk 0:00:04.7]} 56... Bd4 {[%clk
0:00:03.7]} 57. Ne1 {[%clk 0:00:04.5]} 57... Kf2 {[%clk 0:00:02.5]} 58. Nd3+
{[%clk 0:00:04.3]} 58... Ke3 {[%clk 0:00:02.6]} 59. Ne1 {[%clk 0:00:03.8]} 59...
Bc3 {[%clk 0:00:03.2]} 60. Nc2+ {[%clk 0:00:03.3]} 60... Kf2 {[%clk 0:00:03.3]}
61. Bb5 {[%clk 0:00:02.5]} 61... Bg2 {[%clk 0:00:03.1]} 62. Bc4 {[%clk
0:00:02.6]} 62... Bf1 {[%clk 0:00:02.9]} 63. Bb5 {[%clk 0:00:01.6]} 63... Bg2
{[%clk 0:00:02.5]} 64. Bc4 {[%clk 0:00:01.5]} 64... Bc6 {[%clk 0:00:02.5]} 65.
Bd3 {[%clk 0:00:01.5]} 65... Bd5 {[%clk 0:00:02.6]} 66. Bc4 {[%clk 0:00:02]}
66... Be4 {[%clk 0:00:03.3]} 67. Bb5 {[%clk 0:00:01.7]} 67... f3 {[%clk
0:00:03.5]} 68. exf3 {[%clk 0:00:01.7]} 68... Bxf3+ {[%clk 0:00:04.1]} 69. Kc1
{[%clk 0:00:02.6]} 69... Be4 {[%clk 0:00:04.7]} 70. Kd1 {[%clk 0:00:02.6]} 70...
Kf3 {[%clk 0:00:04.3]} 71. Bc4 {[%clk 0:00:02.6]} 71... Kf2 {[%clk 0:00:04.5]}
72. Bb5 {[%clk 0:00:01.9]} 72... Bf3+ {[%clk 0:00:04.5]} 73. Kc1 {[%clk
0:00:01.7]} 73... Bg4 {[%clk 0:00:04.7]} 74. Na3 {[%clk 0:00:02.5]} 74... Bf5
{[%clk 0:00:03.7]} 75. Nc2 {[%clk 0:00:02]} 75... Kf3 {[%clk 0:00:03.2]} 76. Bc4
{[%clk 0:00:02.5]} 76... Kf2 {[%clk 0:00:03.2]} 77. Na3 {[%clk 0:00:02.9]} 77...
Be4 {[%clk 0:00:02.8]} 78. Nb5 {[%clk 0:00:03.5]} 78... Bb4 {[%clk 0:00:02.8]}
79. Kd1 {[%clk 0:00:03.7]} 79... Ke3 {[%clk 0:00:02.7]} 80. Kc1 {[%clk
0:00:03.9]} 80... Bf3 {[%clk 0:00:02.8]} 81. Kc2 {[%clk 0:00:03.7]} 81... Be4+
{[%clk 0:00:03.4]} 82. Kc1 {[%clk 0:00:03.7]} 82... Bf3 {[%clk 0:00:03.7]} 83.
Kc2 {[%clk 0:00:03.4]} 83... Bg4 {[%clk 0:00:04.3]} 84. Kc1 {[%clk 0:00:03.7]}
84... Bf5 {[%clk 0:00:04.7]} 85. Nc7 {[%clk 0:00:03]} 85... Be4 {[%clk
0:00:04.2]} 86. Nd5+ {[%clk 0:00:02.6]} 86... Bxd5 {[%clk 0:00:04.3]} 87. Bxd5
{[%clk 0:00:03.5]} 87... Kd4 {[%clk 0:00:04.8]} 88. Bc4 {[%clk 0:00:03.6]} 88...
Kc3 {[%clk 0:00:05.4]} 89. Kb1 {[%clk 0:00:03.9]} 89... Bc5 {[%clk 0:00:06.1]}
90. Kc1 {[%clk 0:00:04.8]} 90... Bb4 {[%clk 0:00:06.8]} 91. Kb1 {[%clk
0:00:05.7]} 91... Bc5 {[%clk 0:00:07.4]} 92. Kc1 {[%clk 0:00:06.6]} 92... Bb4
{[%clk 0:00:08.1]} 1/2-1/2

[Event "Early-Titled-Tuesday-Blitz-February-13-2024"]
[Site "Chess.com"]
[Date "2024.02.13"]
[Round "6"]
[White "SahibSinghKnight"]
[Black "LileKoridze"]
[Result "1-0"]
[WhiteElo "2608"]
[BlackElo "2421"]
[TimeControl "180+1"]
[EndTime "9:05:19 PST"]
[Termination "SahibSinghKnight won by resignation"]

1. e4 {[%clk 0:03:00.9]} 1... c5 {[%clk 0:02:59.9]} 2. Nf3 {[%clk 0:03:00.4]}
2... d6 {[%clk 0:03:00.4]} 3. d4 {[%clk 0:03:00.8]} 3... cxd4 {[%clk 0:03:00.7]}
4. Nxd4 {[%clk 0:03:01.7]} 4... Nf6 {[%clk 0:03:00.8]} 5. Nc3 {[%clk 0:03:01.9]}
5... a6 {[%clk 0:03:01.3]} 6. Be3 {[%clk 0:02:58.8]} 6... e5 {[%clk 0:03:01.2]}
7. Nf3 {[%clk 0:02:58.8]} 7... h6 {[%clk 0:02:58.7]} 8. Bc4 {[%clk 0:02:58.1]}
8... Be7 {[%clk 0:02:58.6]} 9. O-O {[%clk 0:02:57.9]} 9... O-O {[%clk
0:02:59.1]} 10. h3 {[%clk 0:02:57.9]} 10... Nc6 {[%clk 0:02:55.8]} 11. Re1
{[%clk 0:02:50.1]} 11... b5 {[%clk 0:02:54.2]} 12. Bb3 {[%clk 0:02:45.1]} 12...
Bb7 {[%clk 0:02:54.6]} 13. Nd5 {[%clk 0:02:44.9]} 13... Nxd5 {[%clk 0:02:46.3]}
14. Bxd5 {[%clk 0:02:44.3]} 14... Na5 {[%clk 0:02:44.5]} 15. Bxb7 {[%clk
0:02:43.8]} 15... Nxb7 {[%clk 0:02:44.7]} 16. Qd5 {[%clk 0:02:44.5]} 16... Qc7
{[%clk 0:02:43.6]} 17. c3 {[%clk 0:02:38.2]} 17... Nc5 {[%clk 0:02:43.8]} 18.
Bxc5 {[%clk 0:02:36.2]} 18... Qxc5 {[%clk 0:02:42.4]} 19. Qxc5 {[%clk
0:02:36.1]} 19... dxc5 {[%clk 0:02:43.3]} 20. Nxe5 {[%clk 0:02:36.6]} 20... Rac8
{[%clk 0:02:43.5]} 21. Rad1 {[%clk 0:02:35]} 21... Rfe8 {[%clk 0:02:42.8]} 22.
Nd3 {[%clk 0:02:33.6]} 22... Bf8 {[%clk 0:02:39.3]} 23. e5 {[%clk 0:02:32.1]}
23... Red8 {[%clk 0:02:36.8]} 24. Nf4 {[%clk 0:02:31.5]} 24... Re8 {[%clk
0:02:32.8]} 25. Nd5 {[%clk 0:02:29.4]} 25... Re6 {[%clk 0:02:32.7]} 26. f4
{[%clk 0:02:28.9]} 26... g6 {[%clk 0:02:32.5]} 27. g4 {[%clk 0:02:28.4]} 27...
Bg7 {[%clk 0:02:24.9]} 28. f5 {[%clk 0:02:28.6]} 28... Rxe5 {[%clk 0:02:25.1]}
29. Rxe5 {[%clk 0:02:28]} 1-0

[Event "Early-Titled-Tuesday-Blitz-February-13-2024"]
[Site "Chess.com"]
[Date "2024.02.13"]
[Round "6"]
[White "thesupera12"]
[Black "Leonid_Starozhilov"]
[Result "0-1"]
[WhiteElo "2515"]
[BlackElo "2734"]
[TimeControl "180+1"]
[EndTime "9:05:22 PST"]
[Termination "Leonid_Starozhilov won by resignation"]

1. b3 {[%clk 0:02:53.8]} 1... d5 {[%clk 0:02:59.1]} 2. Bb2 {[%clk 0:02:47.9]}
2... Bg4 {[%clk 0:02:58.7]} 3. h3 {[%clk 0:02:42.8]} 3... Bh5 {[%clk 0:02:58.4]}
4. c4 {[%clk 0:02:40.3]} 4... e6 {[%clk 0:02:58.1]} 5. Nf3 {[%clk 0:02:36.8]}
5... Bxf3 {[%clk 0:02:55]} 6. gxf3 {[%clk 0:02:33.8]} 6... Nf6 {[%clk
0:02:55.5]} 7. d3 {[%clk 0:02:33.2]} 7... g6 {[%clk 0:02:55.6]} 8. Nd2 {[%clk
0:02:31.7]} 8... Bg7 {[%clk 0:02:55.6]} 9. Qc2 {[%clk 0:02:31.7]} 9... Nbd7
{[%clk 0:02:55.5]} 10. O-O-O {[%clk 0:02:31.8]} 10... a5 {[%clk 0:02:55.4]} 11.
e4 {[%clk 0:02:30.9]} 11... O-O {[%clk 0:02:53.3]} 12. h4 {[%clk 0:02:26.7]}
12... Nh5 {[%clk 0:02:48]} 13. exd5 {[%clk 0:02:22.6]} 13... exd5 {[%clk
0:02:45.8]} 14. Bxg7 {[%clk 0:02:19.4]} 14... Kxg7 {[%clk 0:02:45.9]} 15. f4
{[%clk 0:02:15.2]} 15... a4 {[%clk 0:02:42.9]} 16. Nf3 {[%clk 0:02:14]} 16...
axb3 {[%clk 0:02:40.4]} 17. axb3 {[%clk 0:02:14.9]} 17... Qf6 {[%clk 0:02:37.3]}
18. d4 {[%clk 0:02:06.4]} 18... Qxf4+ {[%clk 0:02:29.2]} 19. Nd2 {[%clk
0:02:05.6]} 19... Ra1+ {[%clk 0:02:25]} 20. Kb2 {[%clk 0:02:03]} 20... Qxd4+
{[%clk 0:02:24]} 0-1

[Event "Early-Titled-Tuesday-Blitz-February-13-2024"]
[Site "Chess.com"]
[Date "2024.02.13"]
[Round "6"]
[White "Kirill_Klukin"]
[Black "Chess_Gainz"]
[Result "1-0"]
[WhiteElo "2809"]
[BlackElo "2541"]
[TimeControl "180+1"]
[EndTime "9:05:30 PST"]
[Termination "Kirill_Klukin won by resignation"]

1. d4 {[%clk 0:03:00.9]} 1... d6 {[%clk 0:02:59.9]} 2. Nf3 {[%clk 0:03:01]} 2...
Nf6 {[%clk 0:03:00]} 3. c4 {[%clk 0:03:00.8]} 3... g6 {[%clk 0:03:00.4]} 4. Nc3
{[%clk 0:03:00.9]} 4... Bg7 {[%clk 0:03:00.8]} 5. e3 {[%clk 0:03:01.1]} 5... O-O
{[%clk 0:03:00.8]} 6. Be2 {[%clk 0:03:01.9]} 6... Nbd7 {[%clk 0:02:59.2]} 7. O-O
{[%clk 0:03:02.3]} 7... e5 {[%clk 0:02:59.7]} 8. Qc2 {[%clk 0:03:03]} 8... Re8
{[%clk 0:02:56.7]} 9. b4 {[%clk 0:03:03]} 9... e4 {[%clk 0:02:56.9]} 10. Nd2
{[%clk 0:03:03.1]} 10... Qe7 {[%clk 0:02:57.5]} 11. Bb2 {[%clk 0:03:03.6]} 11...
h5 {[%clk 0:02:56.1]} 12. Rfc1 {[%clk 0:03:04.1]} 12... Nf8 {[%clk 0:02:54.2]}
13. Nd5 {[%clk 0:03:04]} 13... Qd8 {[%clk 0:02:47.3]} 14. Nxf6+ {[%clk
0:03:03.9]} 14... Bxf6 {[%clk 0:02:44.9]} 15. Nxe4 {[%clk 0:03:04]} 15... Bg7
{[%clk 0:02:45.8]} 16. h3 {[%clk 0:03:04.3]} 16... Bf5 {[%clk 0:02:23.5]} 17.
Bd3 {[%clk 0:03:04.4]} 17... d5 {[%clk 0:02:11.1]} 18. cxd5 {[%clk 0:02:56.6]}
18... Qxd5 {[%clk 0:02:11.7]} 19. Nc3 {[%clk 0:02:56.7]} 19... Bxd3 {[%clk
0:02:11.6]} 20. Nxd5 {[%clk 0:02:55.7]} 20... Bxc2 {[%clk 0:02:12]} 21. Rxc2
{[%clk 0:02:56.3]} 21... Rac8 {[%clk 0:01:52.1]} 22. Rxc7 {[%clk 0:02:55.3]}
22... Rxc7 {[%clk 0:01:52.5]} 23. Nxc7 {[%clk 0:02:56.2]} 23... Rc8 {[%clk
0:01:53.2]} 24. Rc1 {[%clk 0:02:56.6]} 24... Nd7 {[%clk 0:01:47.1]} 25. Nd5
{[%clk 0:02:56.2]} 25... Rxc1+ {[%clk 0:01:47.3]} 26. Bxc1 {[%clk 0:02:57.1]}
26... Kf8 {[%clk 0:01:46.8]} 27. Kf1 {[%clk 0:02:57.4]} 27... Nb8 {[%clk
0:01:42.6]} 28. Ke2 {[%clk 0:02:57.4]} 28... Ke8 {[%clk 0:01:42.6]} 29. Kd3
{[%clk 0:02:57.5]} 29... Kd7 {[%clk 0:01:43.3]} 30. a4 {[%clk 0:02:57.8]} 30...
Nc6 {[%clk 0:01:43.8]} 31. b5 {[%clk 0:02:56.9]} 31... Na5 {[%clk 0:01:44.3]}
1-0

[Event "Early-Titled-Tuesday-Blitz-February-13-2024"]
[Site "Chess.com"]
[Date "2024.02.13"]
[Round "6"]
[White "Kildepiotr"]
[Black "faraone99"]
[Result "1-0"]
[WhiteElo "2696"]
[BlackElo "2531"]
[TimeControl "180+1"]
[EndTime "9:05:41 PST"]
[Termination "Kildepiotr won by resignation"]

1. Nf3 {[%clk 0:02:55.5]} 1... d5 {[%clk 0:02:58.8]} 2. g3 {[%clk 0:02:55.9]}
2... Nf6 {[%clk 0:02:58.5]} 3. Bg2 {[%clk 0:02:56.6]} 3... g6 {[%clk 0:02:57.6]}
4. O-O {[%clk 0:02:57.5]} 4... Bg7 {[%clk 0:02:58.2]} 5. d3 {[%clk 0:02:58.3]}
5... O-O {[%clk 0:02:58.4]} 6. Nbd2 {[%clk 0:02:59.2]} 6... c5 {[%clk
0:02:58.1]} 7. e4 {[%clk 0:02:59.9]} 7... Nc6 {[%clk 0:02:57.1]} 8. c3 {[%clk
0:02:59.7]} 8... dxe4 {[%clk 0:02:56.3]} 9. dxe4 {[%clk 0:02:59.9]} 9... b6
{[%clk 0:02:56.3]} 10. Qe2 {[%clk 0:03:00.1]} 10... Qc7 {[%clk 0:02:51.9]} 11.
Re1 {[%clk 0:02:59.4]} 11... Nd7 {[%clk 0:02:35.8]} 12. Nf1 {[%clk 0:02:55.4]}
12... a5 {[%clk 0:02:35.6]} 13. Bf4 {[%clk 0:02:53]} 13... Nde5 {[%clk
0:02:27.6]} 14. Nxe5 {[%clk 0:02:53.2]} 14... Bxe5 {[%clk 0:02:27]} 15. Bh6
{[%clk 0:02:52.1]} 15... Rd8 {[%clk 0:02:25]} 16. f4 {[%clk 0:02:48.2]} 16...
Ba6 {[%clk 0:02:23]} 17. Qf2 {[%clk 0:02:48.4]} 17... Bh8 {[%clk 0:02:21.1]} 18.
e5 {[%clk 0:02:48]} 18... e6 {[%clk 0:02:14.9]} 19. Red1 {[%clk 0:02:46.8]}
19... Rac8 {[%clk 0:02:07.9]} 20. Ne3 {[%clk 0:02:46.2]} 20... Ne7 {[%clk
0:02:05.6]} 21. g4 {[%clk 0:02:40.6]} 21... Bb7 {[%clk 0:02:02.4]} 22. Qh4
{[%clk 0:02:36.6]} 22... Bxg2 {[%clk 0:02:01.4]} 23. Kxg2 {[%clk 0:02:37.1]}
23... Qb7+ {[%clk 0:01:54.2]} 24. Kf2 {[%clk 0:02:37.1]} 24... Nd5 {[%clk
0:01:50.4]} 25. c4 {[%clk 0:02:34]} 25... Nxe3 {[%clk 0:01:45.1]} 26. Rxd8+
{[%clk 0:02:33.2]} 1-0

[Event "Early-Titled-Tuesday-Blitz-February-13-2024"]
[Site "Chess.com"]
[Date "2024.02.13"]
[Round "6"]
[White "InadaC"]
[Black "KorolDimitriy75"]
[Result "0-1"]
[WhiteElo "2179"]
[BlackElo "2403"]
[TimeControl "180+1"]
[EndTime "9:05:41 PST"]
[Termination "KorolDimitriy75 won by checkmate"]

1. d4 {[%clk 0:03:00.9]} 1... Nf6 {[%clk 0:02:56.9]} 2. c4 {[%clk 0:02:59.2]}
2... c5 {[%clk 0:02:57]} 3. d5 {[%clk 0:02:58.9]} 3... b5 {[%clk 0:02:57.1]} 4.
cxb5 {[%clk 0:02:59.4]} 4... a6 {[%clk 0:02:57.4]} 5. b6 {[%clk 0:02:59.9]} 5...
d6 {[%clk 0:02:57.4]} 6. Nc3 {[%clk 0:03:00.8]} 6... Nbd7 {[%clk 0:02:57.3]} 7.
e4 {[%clk 0:03:01.5]} 7... g6 {[%clk 0:02:54.7]} 8. Nf3 {[%clk 0:03:01.5]} 8...
Bg7 {[%clk 0:02:54.7]} 9. Nd2 {[%clk 0:03:02.2]} 9... O-O {[%clk 0:02:52.1]} 10.
Nc4 {[%clk 0:03:02.5]} 10... Nxb6 {[%clk 0:02:52.2]} 11. Nxb6 {[%clk 0:03:01]}
11... Qxb6 {[%clk 0:02:52.8]} 12. Bd3 {[%clk 0:03:01.3]} 12... e6 {[%clk
0:02:33]} 13. dxe6 {[%clk 0:02:59.8]} 13... Bxe6 {[%clk 0:02:33.9]} 14. O-O
{[%clk 0:02:59.7]} 14... d5 {[%clk 0:01:48.7]} 15. exd5 {[%clk 0:02:54.5]} 15...
Nxd5 {[%clk 0:01:49.6]} 16. Nxd5 {[%clk 0:02:46.4]} 16... Bxd5 {[%clk
0:01:50.5]} 17. Bxg6 {[%clk 0:02:39.4]} 17... Rad8 {[%clk 0:01:44.8]} 18. Bg5
{[%clk 0:02:21.5]} 18... Qxg6 {[%clk 0:01:43.2]} 19. Bxd8 {[%clk 0:02:17.8]}
19... Qxg2# {[%clk 0:01:42.6]} 0-1